fUST/lending_fUST_20250927
["ID","MTS","AMOUNT","RATE_DAILY","PERIOD"]
[388016320,1758965456719,-1018.09,0.00036712,9]
[388016321,1758965456729,-1197.51,0.00036712,9]
[388016322,1758965456742,-1571.98,0.00036712,9]
[388016323,1758965456752,-3766.13,0.00036712,9]
[388016324,1758965456761,-11819.47,0.00036712,9]
[388016325,1758965456771,-3081.99,0.00036712,9]
[388016326,1758965456780,-480.0,0.00036712,9]
[388016327,1758965456790,-926.52,0.00036712,9]
[388016328,1758965456800,-480.0,0.00036712,9]
[388016329,1758965456810,-480.0,0.00036712,9]
[388016330,1758965456820,-480.0,0.00036712,9]
[388016331,1758965456829,-842.78,0.00036712,9]
[388016332,1758965456839,-480.0,0.00036712,9]
[388016333,1758965456849,-928.76,0.00036712,9]
[388016334,1758965456859,-3295.26,0.00036712,9]
[388016335,1758965456868,-480.0,0.00036712,9]
[388016336,1758965456877,-580.93,0.00036712,9]
[388016337,1758965456887,-480.0,0.00036712,7]
[388016338,1758965456897,-480.0,0.00036712,9]
[388016339,1758965456908,-1043.77,0.00036712,9]
[388016340,1758965456917,-480.0,0.00036712,9]
[388016341,1758965456927,-3874.75,0.00036712,9]
[388016342,1758965456936,-480.0,0.00036712,9]
[388016343,1758965456946,-1009.91,0.00036712,9]
[388016344,1758965456955,-942.67,0.00036712,9]
[388016345,1758965456965,-501.21,0.00036712,9]
[388016346,1758965456974,-1313.89,0.00036712,9]
[388016347,1758965456984,-4633.27,0.00036712,9]
[388016348,1758965456994,-3223.0,0.00036712,9]
[388016349,1758965457004,-584.45,0.00036712,9]
[388016350,1758965457014,-1627.27,0.00036712,9]
[388016351,1758965457023,-494.54853574,0.00036712,9]
[388016352,1758965457032,-1134.83,0.00036712,9]
[388016353,1758965457042,-480.0,0.00036712,9]
[388016354,1758965457052,-21619.91,0.00036712,9]
[388016355,1758965457061,-5441.71,0.00036712,9]
[388016356,1758965457070,-480.0,0.00036712,9]
[388016357,1758965457079,-480.0,0.00036712,9]
[388016358,1758965457089,-563.85097826,0.00036712,9]
[388016359,1758965457099,-480.0,0.00036712,9]
[388016360,1758965457109,-480.0,0.00036712,9]
[388016361,1758965457118,-480.0,0.00036712,9]
[388016362,1758965457127,-480.0,0.00036712,9]
[388016363,1758965457141,-480.0,0.00036712,9]
[388016364,1758965457164,-843.43,0.00036712,9]
[388016365,1758965457181,-5508.47,0.00036712,9]
[388016366,1758965457201,-480.0,0.00036712,9]
[388016367,1758965457224,-1220.46,0.00036712,9]
[388016368,1758965457243,-697.3,0.00036712,9]
[388016369,1758965457261,-206.52444063,0.00036712,9]
[388016370,1758965457278,-542.6,0.00036712,9]
[388016371,1758965457294,-480.0,0.00036712,9]
[388016372,1758965457315,-5350.41,0.00036712,9]
[388016373,1758965457338,-498.04,0.00036712,9]
[388016374,1758965457352,-2528.77,0.00036712,9]
[388016375,1758965457372,-1397.41,0.00036712,9]
[388016376,1758965457389,-480.0,0.00036712,9]
[388016377,1758965457407,-6012.15,0.00036712,9]
[388016378,1758965457421,-518.88,0.00036712,9]
[388016379,1758965457437,-480.0,0.00036712,9]
[388016380,1758965457452,-1211.93,0.00036712,9]
[388016381,1758965457467,-480.0,0.00036712,9]
[388016382,1758965457483,-803.75,0.00036712,9]
[388016383,1758965457499,-2078.22,0.00036712,9]
[388016384,1758965457514,-1641.68,0.00036712,9]
[388016385,1758965457529,-480.0,0.00036712,9]
[388016386,1758965457544,-856.37,0.00036712,9]
[388016387,1758965457559,-1316.86,0.00036712,9]
[388016388,1758965457575,-480.0,0.00036712,9]
[388016389,1758965457590,-480.0,0.00036712,9]
[388016390,1758965457606,-480.0,0.00036712,9]
[388016391,1758965457621,-1543.55,0.00036712,9]
[388016392,1758965457636,-480.0,0.00036712,9]
[388016393,1758965457650,-185.9420854,0.00036712,9]
[388016394,1758965457666,-3123.63,0.00036712,9]
[388016395,1758965457681,-480.0,0.00036712,9]
[388016396,1758965457697,-11258.56,0.00036712,9]
[388016397,1758965457712,-480.0,0.00036712,9]
[388016398,1758965457732,-538.02616655,0.00036712,9]
[388016399,1758965457753,-712.46,0.00036712,9]
[388016400,1758965457768,-732.34,0.00036712,9]
[388016401,1758965457784,-568.64,0.00036712,9]
[388016402,1758965457799,-2108.14,0.00036712,9]
[388016403,1758965457815,-480.0,0.00036712,9]
[388016404,1758965457831,-6087.94,0.00036712,9]
[388016405,1758965457846,-1746.09,0.00036712,9]
[388016406,1758965457861,-8187.01,0.00036712,9]
[388016407,1758965457876,-2297.1,0.00036712,9]
[388016408,1758965457891,-629.80963692,0.00036712,9]
[388016409,1758965457905,-621.54,0.00036712,9]
[388016410,1758965457922,-2086.48,0.00036712,9]
[388016411,1758965457937,-602.0,0.00036712,9]
[388016412,1758965457952,-683.86,0.00036712,9]
[388016413,1758965457967,-5953.82,0.00036712,9]
[388016414,1758965457981,-5300.22,0.00036712,9]
[388016415,1758965457996,-2958.79,0.00036712,9]
[388016416,1758965458011,-480.0,0.00036712,9]
[388016417,1758965458025,-480.0,0.00036712,9]
[388016418,1758965458041,-1432.8,0.00036712,9]
[388016419,1758965458056,-1182.75,0.00036712,9]
[388016420,1758965458072,-1660.81,0.00036712,9]
[388016421,1758965458087,-3277.19,0.00036712,9]
[388016422,1758965458101,-2989.0,0.00036712,9]
[388016423,1758965458117,-2089.79,0.00036712,9]
[388016424,1758965458131,-480.0,0.00036712,9]
[388016425,1758965458146,-480.0,0.00036712,9]
[388016426,1758965458161,-480.0,0.00036712,9]
[388016427,1758965458176,-3523.57,0.00036712,9]
[388016428,1758965458191,-3121.27,0.00036712,9]
[388016429,1758965458206,-480.0,0.00036712,9]
[388016430,1758965458221,-174.111744,0.00036712,30]
[388016431,1758965458236,-151.1174203,0.00036712,2]
[388016432,1758965458251,-480.0,0.00036712,9]
[388016433,1758965458266,-480.0,0.00036712,9]
[388016434,1758965458281,-1508.49,0.00036712,9]
[388016435,1758965458295,-174.111744,0.00036712,30]
[388016436,1758965458310,-7154.49,0.00036712,9]
[388016437,1758965458325,-174.111744,0.00036712,30]
[388016438,1758965458337,-151.0,0.00036712,30]
[388016439,1758965458347,-174.111744,0.00036712,30]
[388016440,1758965458356,-480.0,0.00036712,9]
[388016441,1758965458365,-178.58777112,0.00036712,9]
[388016442,1758965458573,-1323.11,0.00036712,9]
[388016443,1758965458586,-481.11167815,0.00036712,9]
[388016444,1758965458596,-151.0,0.00036712,30]
[388016445,1758965458605,-151.0,0.00036712,30]
[388016446,1758965458615,-480.0,0.00036712,9]
[388016447,1758965458624,-510.43362431,0.00036712,9]
[388016448,1758965458634,-1494.64,0.00036712,9]
[388016449,1758965458643,-151.0,0.00036712,30]
[388016450,1758965458653,-480.0,0.00036712,9]
[388016451,1758965458663,-2751.74,0.00036712,9]
[388016452,1758965458672,-480.0,0.00036712,9]
[388016453,1758965458682,-644.56,0.00036712,9]
[388016454,1758965458691,-480.0,0.00036712,9]
[388016455,1758965458700,-10000.0,0.00036712,30]
[388016456,1758965458709,-1430.73,0.00036712,9]
[388016457,1758965458719,-480.0,0.00036712,9]
[388016458,1758965458729,-10000.0,0.00036712,30]
[388016459,1758965458741,-223.518126,0.00036712,30]
[388016460,1758965458750,-10000.0,0.00036712,30]
[388016461,1758965458759,-457.132483,0.00036712,30]
[388016462,1758965458769,-223.518126,0.00036712,30]
[388016463,1758965458779,-480.0,0.00036712,7]
[388016464,1758965458789,-3310.18,0.00036712,9]
[388016465,1758965458798,-10000.0,0.00036712,30]
[388016466,1758965458810,-1239.55,0.00036712,9]
[388016467,1758965458819,-457.132483,0.00036712,30]
[388016468,1758965458830,-223.518126,0.00036712,30]
[388016469,1758965458839,-10000.0,0.00036712,30]
[388016470,1758965458850,-457.132483,0.00036712,30]
[388016471,1758965458859,-480.0,0.00036712,9]
[388016472,1758965458868,-223.518126,0.00036712,30]
[388016473,1758965458878,-10000.0,0.00036712,30]
[388016474,1758965458887,-483.3846755,0.00036712,9]
[388016475,1758965458897,-457.132483,0.00036712,30]
[388016476,1758965458907,-10000.0,0.00036712,30]
[388016477,1758965458917,-480.0,0.00036712,9]
[388016478,1758965458927,-10000.0,0.00036712,30]
[388016479,1758965458936,-2529.23,0.00036712,9]
[388016480,1758965458944,-1167.67,0.00036712,9]
[388016481,1758965458954,-10000.0,0.00036712,30]
[388016482,1758965458964,-714.37,0.00036712,9]
[388016483,1758965458973,-480.0,0.00036712,9]
[388016484,1758965458983,-10000.0,0.00036712,30]
[388016485,1758965458992,-1035.27,0.00036712,9]
[388016486,1758965459002,-480.0,0.00036712,9]
[388016487,1758965459012,-480.0,0.00036712,9]
[388016488,1758965459021,-262.88715508,0.00036712,9]
[388016489,1758965459031,-480.0,0.00036712,9]
[388016490,1758965459040,-151.0,0.00036712,30]
[388016491,1758965459050,-3811.06,0.00036712,9]
[388016492,1758965459059,-151.0,0.00036712,30]
[388016493,1758965459068,-3093.5,0.00036712,9]
[388016494,1758965459078,-480.0,0.00036712,9]
[388016495,1758965459087,-1119.8,0.00036712,9]
[388016496,1758965459096,-2207.8,0.00036712,9]
[388016497,1758965459106,-480.0,0.00036712,9]
[388016498,1758965459115,-1235.411703,0.00036712,30]
[388016499,1758965459125,-480.0,0.00036712,9]
[388016500,1758965459134,-1235.411703,0.00036712,30]
[388016501,1758965459143,-1005.54,0.00036712,9]
[388016502,1758965459153,-480.0,0.00036712,9]
[388016503,1758965459162,-6806.21,0.00036712,3]
[388016504,1758965459172,-1235.411703,0.00036712,30]
[388016505,1758965459183,-10518.38,0.00036712,9]
[388016506,1758965459192,-1090.43,0.00036712,9]
[388016507,1758965459202,-205.10876,0.00036712,30]
[388016508,1758965459211,-1235.411703,0.00036712,30]
[388016509,1758965459220,-205.10876,0.00036712,30]
[388016510,1758965459230,-205.10876,0.00036712,30]
[388016511,1758965459239,-480.0,0.00036712,9]
[388016512,1758965459249,-480.0,0.00036712,9]
[388016513,1758965459259,-205.10876,0.00036712,30]
[388016514,1758965459269,-5287.88,0.00036712,9]
[388016515,1758965459279,-480.0,0.00036712,9]
[388016516,1758965459289,-1502.14557009,0.00036768,5]
[388016517,1758965459301,-1200.565365,0.00036768,5]
[388016518,1758965459311,-500.0,0.00036768,5]
[388016519,1758965459322,-1500.0,0.00036768,5]
[388016520,1758965459332,-1500.0,0.00036768,5]
[388016521,1758965459342,-1508.65777358,0.00036768,5]
[388016522,1758965459351,-1500.0,0.00036768,5]
[388016523,1758965459360,-1000.0,0.00036768,5]
[388016524,1758965459370,-266.1219387,0.00036768,5]
[388016525,1758965459379,-1500.0,0.00036768,5]
[388016526,1758965459389,-1500.0,0.00036768,5]
[388016527,1758965459399,-576.25803123,0.00036768,5]
[388016528,1758965459408,-1336.75929006,0.00036768,5]
[388016529,1758965459418,-500.0,0.00036773,5]
[388016530,1758965459427,-243212.96989224,0.00036789,60]
[388016531,1758965459437,-671.533334,0.00036789,30]
[388016532,1758965459446,-671.533334,0.00036789,30]
[388016533,1758965459455,-671.533334,0.00036789,30]
[388016534,1758965459464,-671.533334,0.00036789,30]
[388016535,1758965459474,-231.550528,0.00036789,30]
[388016536,1758965459483,-921.039249,0.00036789,30]
[388016537,1758965459492,-231.550528,0.00036789,30]
[388016538,1758965459502,-921.039249,0.00036789,30]
[388016539,1758965459511,-231.550528,0.00036789,30]
[388016540,1758965459520,-231.550528,0.00036789,30]
[388016541,1758965459530,-921.039249,0.00036789,30]
[388016542,1758965459539,-265.65988,0.00036789,30]
[388016543,1758965459548,-921.039249,0.00036789,30]
[388016544,1758965459557,-265.65988,0.00036789,30]
[388016545,1758965459565,-193.624874,0.00036789,30]
[388016546,1758965459574,-265.65988,0.00036789,30]
[388016547,1758965459582,-193.624874,0.00036789,30]
[388016548,1758965459592,-265.65988,0.00036789,30]
[388016549,1758965459601,-193.624874,0.00036789,30]
[388016550,1758965459610,-151.0,0.00036789,30]
[388016551,1758965459619,-193.624874,0.00036789,30]
[388016552,1758965459627,-151.0,0.00036789,30]
[388016553,1758965459636,-151.0,0.00036789,30]
[388016554,1758965459646,-292.577533,0.00036789,30]
[388016555,1758965459654,-151.0,0.00036789,30]
[388016556,1758965459663,-151.0,0.00036789,30]
[388016557,1758965459671,-151.0,0.00036789,30]
[388016558,1758965459680,-151.0,0.00036789,30]
[388016559,1758965459689,-151.0,0.00036789,30]
[388016560,1758965459697,-151.0,0.00036789,30]
[388016561,1758965459706,-151.0,0.00036789,30]
[388016562,1758965459715,-151.0,0.00036789,30]
[388016563,1758965459723,-151.0,0.00036789,14]
[388016564,1758965459733,-444.001298,0.00036789,30]
[388016565,1758965459746,-198.333755,0.00036789,7]
[388016566,1758965459755,-444.001298,0.00036789,30]
[388016567,1758965459765,-198.333755,0.00036789,7]
[388016568,1758965459774,-444.001298,0.00036789,30]
[388016569,1758965459784,-198.333755,0.00036789,7]
[388016570,1758965459793,-444.001298,0.00036789,30]
[388016571,1758965459801,-198.333755,0.00036789,7]
[388016572,1758965459811,-197.957425,0.00036789,30]
[388016573,1758965459821,-197.957425,0.00036789,30]
[388016574,1758965459830,-197.957425,0.00036789,30]
[388016575,1758965459839,-197.957425,0.00036789,30]
[388016576,1758965459848,-151.0,0.00036789,30]
[388016577,1758965459856,-151.0,0.00036789,30]
[388016578,1758965459864,-157.163048,0.00036789,30]
[388016579,1758965459872,-157.163048,0.00036789,30]
[388016580,1758965459882,-157.163048,0.00036789,30]
[388016581,1758965459891,-157.163048,0.00036789,30]
[388016582,1758965459900,-1305.1792865,0.00036902,2]
[388016583,1758965459907,-1001.71,0.00036986,9]
[388016584,1758965459914,-497.21,0.00036986,9]
[388016585,1758965459921,-1355.5,0.00036986,9]
[388016586,1758965459928,-718.46,0.00036986,9]
[388016587,1758965459938,-488.16199376,0.00036986,9]
[388016588,1758965459947,-1559.42,0.00036986,9]
[388016589,1758965459957,-480.0,0.00036986,9]
[388016590,1758965459967,-480.0,0.00036986,9]
[388016591,1758965459976,-493.89541327,0.00036986,9]
[388016592,1758965459986,-842.28,0.00036986,9]
[388016593,1758965459995,-1496.11,0.00036986,9]
[388016594,1758965460005,-480.0,0.00036986,9]
[388016595,1758965460015,-480.0,0.00036986,9]
[388016596,1758965460024,-480.0,0.00036986,9]
[388016597,1758965460034,-1203.69,0.00036986,9]
[388016598,1758965460044,-480.0,0.00036986,9]
[388016599,1758965460054,-1447.48,0.00036986,9]
[388016600,1758965460064,-487.60148786,0.00036986,9]
[388016601,1758965460074,-486.29123163,0.00036986,9]
[388016602,1758965460083,-480.0,0.00036986,9]
[388016603,1758965460094,-480.0,0.00036986,9]
[388016604,1758965460103,-884.86,0.00036986,9]
[388016605,1758965460112,-480.0,0.00036986,9]
[388016606,1758965460122,-480.0,0.00036986,9]
[388016607,1758965460131,-480.0,0.00036986,9]
[388016608,1758965460140,-618.88,0.00036986,9]
[388016609,1758965460150,-480.0,0.00036986,9]
[388016610,1758965460159,-480.0,0.00036986,9]
[388016611,1758965460169,-530.85,0.00036986,9]
[388016612,1758965460179,-480.0,0.00036986,9]
[388016613,1758965460188,-480.0,0.00036986,9]
[388016614,1758965460198,-4684.08,0.00036986,9]
[388016615,1758965460208,-480.0,0.00036986,9]
[388016616,1758965460217,-2673.58,0.00036986,9]
[388016617,1758965460227,-783.65,0.00036986,9]
[388016618,1758965460237,-627.11630538,0.00036986,9]
[388016619,1758965460246,-480.0,0.00036986,9]
[388016620,1758965460257,-499.05,0.00036986,9]
[388016621,1758965460266,-487.59041783,0.00036986,9]
[388016622,1758965460276,-480.0,0.00036986,9]
[388016623,1758965460286,-480.0,0.00036986,9]
[388016624,1758965460295,-480.0,0.00036986,9]
[388016625,1758965460305,-1987.61,0.00036986,9]
[388016626,1758965460314,-480.0,0.00036986,9]
[388016627,1758965460324,-480.0,0.00036986,9]
[388016628,1758965460334,-480.0,0.00036986,9]
[388016629,1758965460344,-480.0,0.00036986,9]
[388016630,1758965460353,-831.55,0.00036986,9]
[388016631,1758965460363,-480.0,0.00036986,9]
[388016632,1758965460372,-209.53726888,0.00036986,9]
[388016633,1758965460382,-480.0,0.00036986,9]
[388016634,1758965460391,-480.0,0.00036986,9]
[388016635,1758965460400,-482.07783853,0.00036986,9]
[388016636,1758965460409,-480.0,0.00036986,9]
[388016637,1758965460419,-480.0,0.00036986,9]
[388016638,1758965460428,-495.68284639,0.00036986,9]
[388016639,1758965460438,-480.0,0.00036986,9]
[388016640,1758965460447,-480.0,0.00036986,9]
[388016641,1758965460457,-500.0,0.00036986,9]
[388016642,1758965460466,-480.0,0.00036986,9]
[388016643,1758965460476,-481.12,0.00036986,9]
[388016644,1758965460486,-480.0,0.00036986,9]
[388016645,1758965460495,-480.0,0.00036986,9]
[388016646,1758965460504,-480.0,0.00036986,9]
[388016647,1758965460514,-2213.42,0.00036986,9]
[388016648,1758965460523,-524.72,0.00036986,9]
[388016649,1758965460533,-480.0,0.00036986,9]
[388016650,1758965460542,-480.0,0.00036986,9]
[388016651,1758965460552,-480.0,0.00036986,9]
[388016652,1758965460561,-480.0,0.00036986,9]
[388016653,1758965460571,-480.0,0.00036986,9]
[388016654,1758965460580,-492.26492318,0.00036986,9]
[388016655,1758965460590,-480.0,0.00036986,9]
[388016656,1758965460599,-480.0,0.00036986,9]
[388016657,1758965460609,-480.0,0.00036986,9]
[388016658,1758965460618,-494.68783006,0.00036986,9]
[388016659,1758965460627,-480.0,0.00036986,9]
[388016660,1758965460637,-480.0,0.00036986,9]
[388016661,1758965460646,-581.84947104,0.00036986,9]
[388016662,1758965460655,-1547.23,0.00036986,9]
[388016663,1758965460665,-2056.39,0.00036986,9]
[388016664,1758965460675,-665.62,0.00036986,9]
[388016665,1758965460684,-11559.39,0.00036986,9]
[388016666,1758965460694,-480.0,0.00036986,9]
[388016667,1758965460703,-480.0,0.00036986,9]
[388016668,1758965460712,-590.62,0.00036986,9]
[388016669,1758965460722,-564.21,0.00036986,9]
[388016670,1758965460731,-480.0,0.00036986,9]
[388016671,1758965460746,-4719.48,0.00036986,9]
[388016672,1758965460756,-639.4,0.00036986,9]
[388016673,1758965460766,-480.0,0.00036986,9]
[388016674,1758965460775,-1096.73,0.00036986,9]
[388016675,1758965460787,-480.0,0.00036986,9]
[388016676,1758965460796,-806.44,0.00036986,9]
[388016677,1758965460806,-480.0,0.00036986,9]
[388016678,1758965460817,-1018.09,0.00036986,9]
[388016679,1758965460826,-1197.51,0.00036986,9]
[388016680,1758965460835,-1571.98,0.00036986,9]
[388016681,1758965460847,-3766.13,0.00036986,9]
[388016682,1758965460856,-11819.47,0.00036986,9]
[388016683,1758965460865,-3081.99,0.00036986,9]
[388016684,1758965460875,-480.0,0.00036986,9]
[388016685,1758965460884,-926.52,0.00036986,9]
[388016686,1758965460894,-480.0,0.00036986,9]
[388016687,1758965460903,-480.0,0.00036986,9]
[388016688,1758965460913,-480.0,0.00036986,9]
[388016689,1758965460923,-842.78,0.00036986,9]
[388016690,1758965460933,-480.0,0.00036986,9]
[388016691,1758965460943,-928.76,0.00036986,9]
[388016692,1758965460952,-3295.26,0.00036986,9]
[388016693,1758965460962,-480.0,0.00036986,9]
[388016694,1758965460971,-580.93,0.00036986,9]
[388016695,1758965460981,-480.0,0.00036986,7]
[388016696,1758965460990,-480.0,0.00036986,9]
[388016697,1758965460999,-1043.77,0.00036986,9]
[388016698,1758965461009,-504.64332785,0.00036986,9]
[388016699,1758965461018,-3874.75,0.00036986,9]
[388016700,1758965461140,-490.17495306,0.00036986,9]
[388016701,1758965461166,-1009.91,0.00036986,9]
[388016702,1758965461176,-942.67,0.00036986,9]
[388016703,1758965461185,-501.21,0.00036986,9]
[388016704,1758965461195,-1313.89,0.00036986,9]
[388016705,1758965461204,-4633.27,0.00036986,9]
[388016706,1758965461213,-3223.0,0.00036986,9]
[388016707,1758965461223,-584.45,0.00036986,9]
[388016708,1758965461232,-1627.27,0.00036986,9]
[388016709,1758965461242,-1134.83,0.00036986,9]
[388016710,1758965461251,-480.0,0.00036986,9]
[388016711,1758965461260,-21619.91,0.00036986,9]
[388016712,1758965461270,-5441.71,0.00036986,9]
[388016713,1758965461279,-480.0,0.00036986,9]
[388016714,1758965461289,-480.0,0.00036986,9]
[388016715,1758965461298,-480.0,0.00036986,9]
[388016716,1758965461308,-480.0,0.00036986,9]
[388016717,1758965461317,-480.0,0.00036986,9]
[388016718,1758965461327,-480.0,0.00036986,9]
[388016719,1758965461336,-522.85007773,0.00036986,9]
[388016720,1758965461346,-843.43,0.00036986,9]
[388016721,1758965461356,-5508.47,0.00036986,9]
[388016722,1758965461366,-480.0,0.00036986,9]
[388016723,1758965461376,-1220.46,0.00036986,9]
[388016724,1758965461386,-697.3,0.00036986,9]
[388016725,1758965461396,-542.6,0.00036986,9]
[388016726,1758965461405,-480.0,0.00036986,9]
[388016727,1758965461415,-5350.41,0.00036986,9]
[388016728,1758965461425,-498.04,0.00036986,9]
[388016729,1758965461434,-2528.77,0.00036986,9]
[388016730,1758965461443,-1397.41,0.00036986,9]
[388016731,1758965461453,-480.0,0.00036986,9]
[388016732,1758965461462,-6012.15,0.00036986,9]
[388016733,1758965461471,-518.88,0.00036986,9]
[388016734,1758965461481,-480.0,0.00036986,9]
[388016735,1758965461490,-1211.93,0.00036986,9]
[388016736,1758965461499,-499.07206973,0.00036986,9]
[388016737,1758965461508,-803.75,0.00036986,9]
[388016738,1758965461517,-2078.22,0.00036986,9]
[388016739,1758965461527,-1641.68,0.00036986,9]
[388016740,1758965461536,-480.0,0.00036986,9]
[388016741,1758965461546,-856.37,0.00036986,9]
[388016742,1758965461555,-1316.86,0.00036986,9]
[388016743,1758965461565,-480.0,0.00036986,9]
[388016744,1758965461574,-480.0,0.00036986,9]
[388016745,1758965461584,-1543.55,0.00036986,9]
[388016746,1758965461594,-483.97382817,0.00036986,9]
[388016747,1758965461604,-3123.63,0.00036986,9]
[388016748,1758965461613,-480.0,0.00036986,9]
[388016749,1758965461623,-11258.56,0.00036986,9]
[388016750,1758965461632,-480.0,0.00036986,9]
[388016751,1758965461641,-712.46,0.00036986,9]
[388016752,1758965461650,-732.34,0.00036986,9]
[388016753,1758965461659,-568.64,0.00036986,9]
[388016754,1758965461669,-2108.14,0.00036986,9]
[388016755,1758965461678,-480.0,0.00036986,9]
[388016756,1758965461687,-6087.94,0.00036986,9]
[388016757,1758965461696,-1746.09,0.00036986,9]
[388016758,1758965461706,-8187.01,0.00036986,9]
[388016759,1758965461716,-2297.1,0.00036986,9]
[388016760,1758965461725,-621.54,0.00036986,9]
[388016761,1758965461736,-2086.48,0.00036986,9]
[388016762,1758965461747,-602.0,0.00036986,9]
[388016763,1758965461756,-683.86,0.00036986,9]
[388016764,1758965461766,-5953.82,0.00036986,9]
[388016765,1758965461775,-5300.22,0.00036986,9]
[388016766,1758965461787,-2958.79,0.00036986,9]
[388016767,1758965461797,-261.97844139,0.00036986,9]
[388016768,1758965461807,-480.0,0.00036986,9]
[388016769,1758965461817,-1432.8,0.00036986,9]
[388016770,1758965461827,-1182.75,0.00036986,9]
[388016771,1758965461837,-1660.81,0.00036986,9]
[388016772,1758965461848,-3277.19,0.00036986,9]
[388016773,1758965461857,-2989.0,0.00036986,9]
[388016774,1758965461867,-2089.79,0.00036986,9]
[388016775,1758965461877,-480.0,0.00036986,9]
[388016776,1758965461886,-480.0,0.00036986,9]
[388016777,1758965461895,-480.0,0.00036986,9]
[388016778,1758965461904,-3523.57,0.00036986,9]
[388016779,1758965461913,-3121.27,0.00036986,9]
[388016780,1758965461923,-480.0,0.00036986,9]
[388016781,1758965461932,-480.0,0.00036986,9]
[388016782,1758965461941,-480.0,0.00036986,9]
[388016783,1758965461953,-1508.49,0.00036986,9]
[388016784,1758965461965,-7154.49,0.00036986,9]
[388016785,1758965461974,-480.0,0.00036986,9]
[388016786,1758965461983,-1323.11,0.00036986,9]
[388016787,1758965461993,-480.0,0.00036986,9]
[388016788,1758965462002,-1494.64,0.00036986,9]
[388016789,1758965462012,-480.0,0.00036986,9]
[388016790,1758965462021,-2751.74,0.00036986,9]
[388016791,1758965462038,-480.0,0.00036986,9]
[388016792,1758965462047,-644.56,0.00036986,9]
[388016793,1758965462057,-480.0,0.00036986,9]
[388016794,1758965462066,-1430.73,0.00036986,9]
[388016795,1758965462076,-480.0,0.00036986,9]
[388016796,1758965462086,-480.0,0.00036986,7]
[388016797,1758965462095,-3310.18,0.00036986,9]
[388016798,1758965462105,-1239.55,0.00036986,9]
[388016799,1758965462115,-480.0,0.00036986,9]
[388016800,1758965462124,-480.0,0.00036986,9]
[388016801,1758965462134,-2529.23,0.00036986,9]
[388016802,1758965462143,-1167.67,0.00036986,9]
[388016803,1758965462153,-714.37,0.00036986,9]
[388016804,1758965462162,-480.0,0.00036986,9]
[388016805,1758965462172,-1035.27,0.00036986,9]
[388016806,1758965462181,-480.0,0.00036986,9]
[388016807,1758965462191,-480.0,0.00036986,9]
[388016808,1758965462200,-480.0,0.00036986,9]
[388016809,1758965462209,-3811.06,0.00036986,9]
[388016810,1758965462218,-3093.5,0.00036986,9]
[388016811,1758965462228,-400.0,0.00036986,9]
[388016812,1758965462237,-1119.8,0.00036986,9]
[388016813,1758965462246,-2207.8,0.00036986,9]
[388016814,1758965462256,-480.0,0.00036986,9]
[388016815,1758965462265,-480.0,0.00036986,9]
[388016816,1758965462274,-1005.54,0.00036986,9]
[388016817,1758965462284,-480.0,0.00036986,9]
[388016818,1758965462293,-6806.21,0.00036986,3]
[388016819,1758965462303,-10518.38,0.00036986,9]